{"text_format":"1","workbook":"xlsx","n_sheets":6,"sheets":["Hinweise","Grundbuch","Hauptbuch","GuV","Bilanzbuch","Kontenplan"],"not_rendered":{"charts":0,"images":18,"macros":1,"external_links":0,"defined_names":0,"comments":0,"pivot_tables":0},"unopened":[],"bounds":{"document_bytes":16777216,"sheet_cells":100000,"rows_first":2000,"rows_last":500,"rows_between":2000,"halvings":0,"cell_chars":16384,"cell_head_chars":4096},"cells_cut":0,"cells_raw":0,"read":"whole","date_system":"1900"}

{"sheet":"Hinweise","index":0,"n_rows":68,"n_cols":7,"rows_kept":68,"cut":false,"hidden":false,"merged":[[59,1,59,3],[0,0,0,7],[2,0,2,1],[58,1,58,3],[57,1,57,3],[8,4,10,7]]}
["Geschäftsgang 8"]
[]
["Voraussetzungen"]
["Um den Geschäftsgang buchen zu können müssen Sie Kenntnisse über die folgenden Lehrninhalte haben:"]
["Buchungen auf Bestandskonten"]
["Buchungen auf Erfolgskonten"]
["Bestandsveränderungen"]
["Umsatzsteuer"]
["Buchung von Bezugskosten",null,null,null,"Für den Kontenabschluss müssen Sie Grundkenntnisse in der                    Tabellenkalkulation haben! "]
["Buchung von Nachlässen und Erlösberichtigungen"]
["Kontenabschluss im Hauptbuch"]
[]
["Buchen im Grundbuch"]
["1. Wählen Sie die Tabelle \"Grundbuch\"."]
[]
["2. Buchen Sie die Geschäftsvorfälle"]
["    entweder durch Direkteingabe in die entsprechenden Felder des Grundbuchs (Kontennummern und Beträge)"]
["    oder durch Aufruf von Buchungsfenstern. (Klicken Sie dazu jeweils auf die Schaltfläche \"Buchung\" und beenden"]
["    Sie die Eingabe  mit \"OK\".)"]
["    Die Kontennummern sind vierstellig anzugeben. (siehe Kontenplan). Bei zusammengesetzten Buchungssätzen"]
["    sind die Buchungen nach der Höhe der Beträge geordnet vorzunehmen. "]
[]
["3. Sie können sich den Kontenplan mit Kontennummern jederzeit durch Klick auf den"]
["    entsprechenden Button anzeigen lassen."]
[]
["4. Die Richtigkeit Ihrer Buchungen wird bestätigt oder Sie werden auf"]
["    Fehler hingewiesen. (Ohne Buchung werden Fehler angezeigt.)"]
[]
["Buchen in Hauptbuch, GuV und Schlussbilanz"]
["1. Navigation"]
["    Sie können über die Blattregisterkarten die Tabellen Grundbuch, Hauptbuch, GuV und Bilanzbuch ansteuern."]
["    Einen direkten Zugriff auf die jeweils benötigen Konten haben Sie über die folgenden Schalter:"]
[null,"Hauptbuchkonten",null,null,"Grundbuch",null,"Nachlässe (Rohstoffe)"]
[null,"Gewinn und Verlust",null,null,"Schlussbilanz",null,"Rohstoffe"]
[null,"Bestandsveränderungen",null,null,"Umsatzsteuer",null,"Erlösberichtigungen"]
[null,"Vorsteuer",null,null,"Unfertige Erzeugnisse",null,"Umsatzerlöse"]
[null,"Fertige Erzeugnisse",null,null,"Bezugskosten (Rohst.)"]
["   Über diese Schalter können Sie aus dem Grundbuch heraus das für die jeweilige Buchung benötigte Konto"]
["   direkt aufrufen. Dieses Konto wird dann jeweils mit einem X markiert."]
[]
["2. Buchungen"]
["    Die Systematik wird Ihnen an einem Screenshot das Kontos Forderungen gezeigt."]
[]
["    lfd. Nummern ",null,null,null,"lfd. Nummern",null,"               Navigation"]
[]
[]
[]
[]
[]
[]
[]
[]
[]
[null,null,null,null,"Beträge"]
[]
[null,"Kontenanruf (in jeder Zelle steht eine Kontonummer)",null,null,null,null,"   Abschlussmeldung"]
[]
[null,"Eröffnungsbuchungen (bereits gebucht)",null,null,null,"A   = Abschlussbuchung"]
[null,"laufende Buchungen",null,null,null,"AB = Anfangsbestand"]
[null,"Abschlussbuchungen und Berechnungen",null,null,null,"SB = Schlussbestand"]
[]
["3. Abschluss"]
["    Die Konten sind unter fogenden Bedingungen richtig abgeschlossen."]
["    - Die Nummern der Gegenkonten werden gemäß den Grundsätzen ordnungsgemäßer Buchführung geordnet,"]
["      in die dafür vorgesehenen Zellen eingetragen. Die Reihenfolge der Eintragungen muss mit dem Grundbuch"]
["      übereinstimmen."]
["    - Die Beträge sind richtig eingetragen."]
["    - Die Abschlussberechnungen sind korrekt."]

{"sheet":"Grundbuch","index":1,"n_rows":102,"n_cols":7,"rows_kept":102,"cut":false,"hidden":false,"merged":[[24,0,26,0],[16,0,17,0],[19,1,22,2],[19,5,20,6],[21,5,21,6],[22,5,22,6],[12,5,12,6],[13,5,13,6],[14,5,14,6],[5,1,7,2],[5,5,5,6],[6,5,6,6],[7,5,7,6],[93,0,93,2],[101,0,101,6],[96,5,96,6],[98,0,99,0],[94,5,94,6],[95,5,95,6],[1,0,1,4],[2,0,2,4],[60,0,61,0],[70,1,73,2],[70,5,71,6],[72,5,72,6],[73,5,73,6],[67,0,68,0],[28,1,30,2],[28,5,28,6],[63,1,65,2],[63,5,63,6],[64,5,64,6],[65,5,65,6],[9,0,10,0],[12,1,14,2],[46,0,47,0],[29,5,29,6],[30,5,30,6],[32,0,33,0],[35,1,37,2],[35,5,35,6],[36,5,36,6],[37,5,37,6],[39,0,40,0],[42,1,44,2],[42,5,42,6],[43,5,43,6],[44,5,44,6],[83,0,84,0],[49,1,51,2],[49,5,49,6],[50,5,50,6],[51,5,51,6],[53,0,54,0],[56,1,58,2],[56,5,56,6],[57,5,57,6],[58,5,58,6],[75,0,77,0],[79,1,81,2],[79,5,79,6],[80,5,80,6],[81,5,81,6],[86,1,88,2],[86,5,86,6],[90,0,91,0],[87,5,87,6],[88,5,88,6]]}
[]
["Geschäftsvorfälle"]
["Grundbuch"]
[null,null,null,null,null,null,0.19]
[]
["1.","Kauf eines Pkw auf Ziel,",null,"netto",28000,{"$f":"IF(AND(B10=\"0840\",B11=\"2600\",E10=\"4400\"),\"Die Konten sind richtig!\",\"Mindestens ein Konto ist falsch!\")","v":"Mindestens ein Konto ist falsch!"}]
["Geschäftsvorfall",null,null,"USt.",{"$f":"E6*G4","v":5320},{"$f":"IF(AND(D10=E6,D11=E7,G10=E8),\"Die Beträge sind richtig!\",\"Mindestens ein Betrag ist falsch!\")","v":"Mindestens ein Betrag ist falsch!"}]
[null,null,null,"brutto",{"$f":"SUM(E6:E7)","v":33320},{"$f":"IF(AND(F6=\"Die Konten sind richtig!\",F7=\"Die Beträge sind richtig!\"),\"Alles richtig!\",\"Es sind noch Fehler vorhanden!\")","v":"Es sind noch Fehler vorhanden!"}]
[null,"Soll","Konto","€","Haben","Konto","€"]
["Buchungssatz","",{"$f":"IF(B10=\"\",\"\",VLOOKUP(B10,Kontenplan!$A$4:$B$30,2))","v":""},null,"",{"$f":"IF(E10=\"\",\"\",VLOOKUP(E10,Kontenplan!$A$4:$B$30,2))","v":""}]
[null,"",{"$f":"IF(B11=\"\",\"\",VLOOKUP(B11,Kontenplan!$A$4:$B$30,2))","v":""},null,null,{"$f":"IF(E11=\"\",\"\",VLOOKUP(E11,Kontenplan!$A$4:$B$30,2))","v":""}]
[]
["2.","Barzahlung von Bezugskosten für die Lieferung von Rohstoffen",null,"netto",350,{"$f":"IF(AND(B17=\"2001\",B18=\"2600\",E17=\"2880\"),\"Die Konten sind richtig!\",\"Mindestens ein Konto ist falsch!\")","v":"Mindestens ein Konto ist falsch!"}]
["Geschäftsvorfall",null,null,"USt.",{"$f":"E13*G4","v":66.5},{"$f":"IF(AND(D17=E13,D18=E14,G17=E15),\"Die Beträge sind richtig!\",\"Mindestens ein Betrag ist falsch!\")","v":"Mindestens ein Betrag ist falsch!"}]
[null,null,null,"brutto",{"$f":"SUM(E13:E14)","v":416.5},{"$f":"IF(AND(F13=\"Die Konten sind richtig!\",F14=\"Die Beträge sind richtig!\"),\"Alles richtig!\",\"Es sind noch Fehler vorhanden!\")","v":"Es sind noch Fehler vorhanden!"}]
[null,"Soll","Konto","€","Haben","Konto","€"]
["Buchungssatz",null,{"$f":"IF(B17=\"\",\"\",VLOOKUP(B17,Kontenplan!$A$4:$B$30,2))","v":""},null,null,{"$f":"IF(E17=\"\",\"\",VLOOKUP(E17,Kontenplan!$A$4:$B$30,2))","v":""}]
[null,null,{"$f":"IF(B18=\"\",\"\",VLOOKUP(B18,Kontenplan!$A$4:$B$30,2))","v":""},null,null,{"$f":"IF(E18=\"\",\"\",VLOOKUP(E18,Kontenplan!$A$4:$B$30,2))","v":""}]
[]
["3.","Ein Kunde begleicht eine Ausgangsrechnung abzüglich 2% Skonto durch Banküberweisung.",null,"Gutschrift",{"$f":"ROUND(E23-(E23*2%),2)","v":23324},{"$f":"IF(AND(B25=\"2800\",B26=\"5001\",B27=\"4800\",E25=\"2400\"),\"Die Konten sind richtig!\",\"Mindestens ein Konto ist falsch!\")","v":"Mindestens ein Konto ist falsch!"}]
[null,null,null,"Skonto",{"$f":"ROUND(((E23*2%)*100)/(100+(100*G4)),2)","v":400}]
["Geschäftsvorfall",null,null,"USt.",{"$f":"ROUND(E21*G4,2)","v":76},{"$f":"IF(AND(D25=E20,D26=E21,D27=E22,G25=E23),\"Die Beträge sind richtig!\",\"Mindestens ein Betrag ist falsch!\")","v":"Mindestens ein Betrag ist falsch!"}]
[null,null,null,"Bruttobetrag",23800,{"$f":"IF(AND(F20=\"Die Konten sind richtig!\",F22=\"Die Beträge sind richtig!\"),\"Alles richtig!\",\"Es sind noch Fehler vorhanden!\")","v":"Es sind noch Fehler vorhanden!"}]
[null,"Soll","Konto","€","Haben","Konto","€"]
["Buchungssatz",null,{"$f":"IF(B25=\"\",\"\",VLOOKUP(B25,Kontenplan!$A$4:$B$30,2))","v":""},null,null,{"$f":"IF(E25=\"\",\"\",VLOOKUP(E25,Kontenplan!$A$4:$B$30,2))","v":""}]
[null,null,{"$f":"IF(B26=\"\",\"\",VLOOKUP(B26,Kontenplan!$A$4:$B$30,2))","v":""},null,null,{"$f":"IF(E26=\"\",\"\",VLOOKUP(E26,Kontenplan!$A$4:$B$30,2))","v":""}]
[null,null,{"$f":"IF(B27=\"\",\"\",VLOOKUP(B27,Kontenplan!$A$4:$B$30,2))","v":""},null,null,{"$f":"IF(E27=\"\",\"\",VLOOKUP(E27,Kontenplan!$A$4:$B$30,2))","v":""}]
[]
["4.","Einkauf von Rohstoffen auf Ziel bei der Cotton GmbH & Co KG,",null,"netto",25000,{"$f":"IF(AND(B33=\"2000\",B34=\"2600\",E33=\"4400\"),\"Die Konten sind richtig!\",\"Mindestens ein Konto ist falsch!\")","v":"Mindestens ein Konto ist falsch!"}]
["Geschäftsvorfall",null,null,"USt.",{"$f":"E29*G4","v":4750},{"$f":"IF(AND(D33=E29,D34=E30,G33=E31),\"Die Beträge sind richtig!\",\"Mindestens ein Betrag ist falsch!\")","v":"Mindestens ein Betrag ist falsch!"}]
[null,null,null,"brutto",{"$f":"SUM(E29:E30)","v":29750},{"$f":"IF(AND(F29=\"Die Konten sind richtig!\",F30=\"Die Beträge sind richtig!\"),\"Alles richtig!\",\"Es sind noch Fehler vorhanden!\")","v":"Es sind noch Fehler vorhanden!"}]
[null,"Soll","Konto","€","Haben","Konto","€"]
["Buchungssatz",null,{"$f":"IF(B33=\"\",\"\",VLOOKUP(B33,Kontenplan!$A$4:$B$30,2))","v":""},null,null,{"$f":"IF(E33=\"\",\"\",VLOOKUP(E33,Kontenplan!$A$4:$B$30,2))","v":""}]
[null,null,{"$f":"IF(B34=\"\",\"\",VLOOKUP(B34,Kontenplan!$A$4:$B$30,2))","v":""},null,null,{"$f":"IF(E34=\"\",\"\",VLOOKUP(E34,Kontenplan!$A$4:$B$30,2))","v":""}]
[]
["5.","Rücksendung beschädigter Rohstoffe aus Geschäftsvorfall 4. an die Cotton GmbH & Co KG,",null,"netto",800,{"$f":"IF(AND(B40=\"4400\",E40=\"2000\",E41=\"2600\"),\"Die Konten sind richtig!\",\"Mindestens ein Konto ist falsch!\")","v":"Mindestens ein Konto ist falsch!"}]
["Geschäftsvorfall",null,null,"USt.",{"$f":"E36*G4","v":152},{"$f":"IF(AND(D40=E38,G40=E36,G41=E37),\"Die Beträge sind richtig!\",\"Mindestens ein Betrag ist falsch!\")","v":"Mindestens ein Betrag ist falsch!"}]
[null,null,null,"brutto",{"$f":"SUM(E36:E37)","v":952},{"$f":"IF(AND(F36=\"Die Konten sind richtig!\",F37=\"Die Beträge sind richtig!\"),\"Alles richtig!\",\"Es sind noch Fehler vorhanden!\")","v":"Es sind noch Fehler vorhanden!"}]
[null,"Soll","Konto","€","Haben","Konto","€"]
["Buchungssatz",null,{"$f":"IF(B40=\"\",\"\",VLOOKUP(B40,Kontenplan!$A$4:$B$30,2))","v":""},null,null,{"$f":"IF(E40=\"\",\"\",VLOOKUP(E40,Kontenplan!$A$4:$B$30,2))","v":""}]
[null,null,{"$f":"IF(B41=\"\",\"\",VLOOKUP(B41,Kontenplan!$A$4:$B$30,2))","v":""},null,null,{"$f":"IF(E41=\"\",\"\",VLOOKUP(E41,Kontenplan!$A$4:$B$30,2))","v":""}]
[]
["6.","Bonusgewährung an einen Kunden,",null,"netto",250,{"$f":"IF(AND(B47=\"5001\",B48=\"4800\",E47=\"2400\"),\"Die Konten sind richtig!\",\"Mindestens ein Konto ist falsch!\")","v":"Mindestens ein Konto ist falsch!"}]
["Geschäftsvorfall",null,null,"USt.",{"$f":"E43*G4","v":47.5},{"$f":"IF(AND(D47=E43,D48=E44,G47=E45),\"Die Beträge sind richtig!\",\"Mindestens ein Betrag ist falsch!\")","v":"Mindestens ein Betrag ist falsch!"}]
[null,null,null,"brutto",{"$f":"SUM(E43:E44)","v":297.5},{"$f":"IF(AND(F43=\"Die Konten sind richtig!\",F44=\"Die Beträge sind richtig!\"),\"Alles richtig!\",\"Es sind noch Fehler vorhanden!\")","v":"Es sind noch Fehler vorhanden!"}]
[null,"Soll","Konto","€","Haben","Konto","€"]
["Buchungssatz",null,{"$f":"IF(B47=\"\",\"\",VLOOKUP(B47,Kontenplan!$A$4:$B$30,2))","v":""},null,null,{"$f":"IF(E47=\"\",\"\",VLOOKUP(E47,Kontenplan!$A$4:$B$30,2))","v":""}]
[null,null,{"$f":"IF(B48=\"\",\"\",VLOOKUP(B48,Kontenplan!$A$4:$B$30,2))","v":""},null,null,{"$f":"IF(E48=\"\",\"\",VLOOKUP(E48,Kontenplan!$A$4:$B$30,2))","v":""}]
[]
["7.","Barzahlung für eine Maschinenreparatur,",null,"netto",2800,{"$f":"IF(AND(B54=\"6160\",B55=\"2600\",E54=\"2880\"),\"Die Konten sind richtig!\",\"Mindestens ein Konto ist falsch!\")","v":"Mindestens ein Konto ist falsch!"}]
["Geschäftsvorfall",null,null,"USt.",{"$f":"E50*G4","v":532},{"$f":"IF(AND(D54=E50,D55=E51,G54=E52),\"Die Beträge sind richtig!\",\"Mindestens ein Betrag ist falsch!\")","v":"Mindestens ein Betrag ist falsch!"}]
[null,null,null,"brutto",{"$f":"SUM(E50:E51)","v":3332},{"$f":"IF(AND(F50=\"Die Konten sind richtig!\",F51=\"Die Beträge sind richtig!\"),\"Alles richtig!\",\"Es sind noch Fehler vorhanden!\")","v":"Es sind noch Fehler vorhanden!"}]
[null,"Soll","Konto","€","Haben","Konto","€"]
["Buchungssatz",null,{"$f":"IF(B54=\"\",\"\",VLOOKUP(B54,Kontenplan!$A$4:$B$30,2))","v":""},null,null,{"$f":"IF(E54=\"\",\"\",VLOOKUP(E54,Kontenplan!$A$4:$B$30,2))","v":""}]
[null,null,{"$f":"IF(B55=\"\",\"\",VLOOKUP(B55,Kontenplan!$A$4:$B$30,2))","v":""},null,null,{"$f":"IF(E55=\"\",\"\",VLOOKUP(E55,Kontenplan!$A$4:$B$30,2))","v":""}]
[]
["8.","Gutschrift eines Rohstofflieferanten für einen Preisnachlass aufgrund eines Mangels,",null,"netto",850,{"$f":"IF(AND(B61=\"4400\",E61=\"2002\",E62=\"2600\"),\"Die Konten sind richtig!\",\"Mindestens ein Konto ist falsch!\")","v":"Mindestens ein Konto ist falsch!"}]
["Geschäftsvorfall",null,null,"USt.",{"$f":"E57*G4","v":161.5},{"$f":"IF(AND(D61=E59,G61=E57,G62=E58),\"Die Beträge sind richtig!\",\"Mindestens ein Betrag ist falsch!\")","v":"Mindestens ein Betrag ist falsch!"}]
[null,null,null,"brutto",{"$f":"SUM(E57:E58)","v":1011.5},{"$f":"IF(AND(F57=\"Die Konten sind richtig!\",F58=\"Die Beträge sind richtig!\"),\"Alles richtig!\",\"Es sind noch Fehler vorhanden!\")","v":"Es sind noch Fehler vorhanden!"}]
[null,"Soll","Konto","€","Haben","Konto","€"]
["Buchungssatz",null,{"$f":"IF(B61=\"\",\"\",VLOOKUP(B61,Kontenplan!$A$4:$B$30,2))","v":""},null,null,{"$f":"IF(E61=\"\",\"\",VLOOKUP(E61,Kontenplan!$A$4:$B$30,2))","v":""}]
[null,null,{"$f":"IF(B62=\"\",\"\",VLOOKUP(B62,Kontenplan!$A$4:$B$30,2))","v":""},null,null,{"$f":"IF(E62=\"\",\"\",VLOOKUP(E62,Kontenplan!$A$4:$B$30,2))","v":""}]
[]
["9.","Barzahlung für Ausgangsfrachten,",null,"netto",150,{"$f":"IF(AND(B68=\"6140\",B69=\"2600\",E68=\"2880\"),\"Die Konten sind richtig!\",\"Mindestens ein Konto ist falsch!\")","v":"Mindestens ein Konto ist falsch!"}]
["Geschäftsvorfall",null,null,"USt.",{"$f":"E64*G4","v":28.5},{"$f":"IF(AND(D68=E64,D69=E65,G68=E66),\"Die Beträge sind richtig!\",\"Mindestens ein Betrag ist falsch!\")","v":"Mindestens ein Betrag ist falsch!"}]
[null,null,null,"brutto",{"$f":"SUM(E64:E65)","v":178.5},{"$f":"IF(AND(F64=\"Die Konten sind richtig!\",F65=\"Die Beträge sind richtig!\"),\"Alles richtig!\",\"Es sind noch Fehler vorhanden!\")","v":"Es sind noch Fehler vorhanden!"}]
[null,"Soll","Konto","€","Haben","Konto","€"]
["Buchungssatz",null,{"$f":"IF(B68=\"\",\"\",VLOOKUP(B68,Kontenplan!$A$4:$B$30,2))","v":""},null,null,{"$f":"IF(E68=\"\",\"\",VLOOKUP(E68,Kontenplan!$A$4:$B$30,2))","v":""}]
[null,null,{"$f":"IF(B69=\"\",\"\",VLOOKUP(B69,Kontenplan!$A$4:$B$30,2))","v":""},null,null,{"$f":"IF(E69=\"\",\"\",VLOOKUP(E69,Kontenplan!$A$4:$B$30,2))","v":""}]
[]
["10.","Banküberweisung an einen Rohstofflieferer unter Abzug von 2% Skonto, ",null,"Lastschrift",{"$f":"ROUND(E74-(E74*2%),2)","v":27988.799999999999},{"$f":"IF(AND(B76=\"4400\",E76=\"2800\",E77=\"2002\",E78=\"2600\"),\"Die Konten sind richtig!\",\"Mindestens ein Konto ist falsch!\")","v":"Mindestens ein Konto ist falsch!"}]
[null,null,null,"Skonto",{"$f":"ROUND(((E74*2%)*100)/(100+(100*G4)),2)","v":480}]
["Geschäftsvorfall",null,null,"USt.",{"$f":"ROUND(E72*G4,2)","v":91.2},{"$f":"IF(AND(D76=E74,E74,G76=E71,G77=E72,G78=E73),\"Die Beträge sind richtig!\",\"Mindestens ein Betrag ist falsch!\")","v":"Mindestens ein Betrag ist falsch!"}]
[null,null,null,"Bruttobetrag",28560,{"$f":"IF(AND(F71=\"Die Konten sind richtig!\",F73=\"Die Beträge sind richtig!\"),\"Alles richtig!\",\"Es sind noch Fehler vorhanden!\")","v":"Es sind noch Fehler vorhanden!"}]
[null,"Soll","Konto","€","Haben","Konto","€"]
["Buchungssatz",null,{"$f":"IF(B76=\"\",\"\",VLOOKUP(B76,Kontenplan!$A$4:$B$30,2))","v":""},null,null,{"$f":"IF(E76=\"\",\"\",VLOOKUP(E76,Kontenplan!$A$4:$B$30,2))","v":""}]
[null,null,{"$f":"IF(B77=\"\",\"\",VLOOKUP(B77,Kontenplan!$A$4:$B$30,2))","v":""},null,null,{"$f":"IF(E77=\"\",\"\",VLOOKUP(E77,Kontenplan!$A$4:$B$30,2))","v":""}]
[null,null,{"$f":"IF(B78=\"\",\"\",VLOOKUP(B78,Kontenplan!$A$4:$B$30,2))","v":""},null,null,{"$f":"IF(E78=\"\",\"\",VLOOKUP(E78,Kontenplan!$A$4:$B$30,2))","v":""}]
[]
["11.","Verkauf von Jeans, Jeansjacken und T-Shirts auf Ziel,",null,"netto",53000,{"$f":"IF(AND(B84=\"2400\",E84=\"5000\",E85=\"4800\"),\"Die Konten sind richtig!\",\"Mindestens ein Konto ist falsch!\")","v":"Mindestens ein Konto ist falsch!"}]
["Geschäftsvorfall",null,null,"USt.",{"$f":"E80*G4","v":10070},{"$f":"IF(AND(D84=E82,G84=E80,G85=E81),\"Die Beträge sind richtig!\",\"Mindestens ein Betrag ist falsch!\")","v":"Mindestens ein Betrag ist falsch!"}]
[null,null,null,"brutto",{"$f":"SUM(E80:E81)","v":63070},{"$f":"IF(AND(F80=\"Die Konten sind richtig!\",F81=\"Die Beträge sind richtig!\"),\"Alles richtig!\",\"Es sind noch Fehler vorhanden!\")","v":"Es sind noch Fehler vorhanden!"}]
[null,"Soll","Konto","€","Haben","Konto","€"]
["Buchungssatz",null,{"$f":"IF(B84=\"\",\"\",VLOOKUP(B84,Kontenplan!$A$4:$B$30,2))","v":""},null,null,{"$f":"IF(E84=\"\",\"\",VLOOKUP(E84,Kontenplan!$A$4:$B$30,2))","v":""}]
[null,null,{"$f":"IF(B85=\"\",\"\",VLOOKUP(B85,Kontenplan!$A$4:$B$30,2))","v":""},null,null,{"$f":"IF(E85=\"\",\"\",VLOOKUP(E85,Kontenplan!$A$4:$B$30,2))","v":""}]
[]
["12.","Wir zahlen Fracht für den Verkauf von Fertigen Erzeugnissen aus Geschäftsvorfall 11 bar, ",null,"netto",1200,{"$f":"IF(AND(B91=\"6140\",B92=\"2600\",E91=\"2880\"),\"Die Konten sind richtig!\",\"Mindestens ein Konto ist falsch!\")","v":"Mindestens ein Konto ist falsch!"}]
["Geschäftsvorfall",null,null,"USt.",{"$f":"E87*G4","v":228},{"$f":"IF(AND(D91=E87,D92=E88,G91=E89),\"Die Beträge sind richtig!\",\"Mindestens ein Betrag ist falsch!\")","v":"Mindestens ein Betrag ist falsch!"}]
[null,null,null,"brutto",{"$f":"SUM(E87:E88)","v":1428},{"$f":"IF(AND(F87=\"Die Konten sind richtig!\",F88=\"Die Beträge sind richtig!\"),\"Alles richtig!\",\"Es sind noch Fehler vorhanden!\")","v":"Es sind noch Fehler vorhanden!"}]
[null,"Soll","Konto","€","Haben","Konto","€"]
["Buchungssatz",null,{"$f":"IF(B91=\"\",\"\",VLOOKUP(B91,Kontenplan!$A$4:$B$30,2))","v":""},null,null,{"$f":"IF(E91=\"\",\"\",VLOOKUP(E91,Kontenplan!$A$4:$B$30,2))","v":""}]
[null,null,{"$f":"IF(B92=\"\",\"\",VLOOKUP(B92,Kontenplan!$A$4:$B$30,2))","v":""},null,null,{"$f":"IF(E92=\"\",\"\",VLOOKUP(E92,Kontenplan!$A$4:$B$30,2))","v":""}]
[]
["Abschlussangaben"]
["A1","Endbestände lt. Inventur",null,null,null,{"$f":"IF(AND(B99=\"8010\",E99=\"2100\",B100=\"8010\",E100=\"2200\"),\"Die Konten sind richtig!\",\"Mindestens ein Konto ist falsch!\")","v":"Mindestens ein Konto ist falsch!"}]
["Abschlussangabe",null,"           - Unfertige Erzeugnisse",null,12400,{"$f":"IF(AND(D99=E96,D100=E97,G99=E96,G100=E97),\"Die Beträge sind richtig!\",\"Mindestens ein Betrag ist falsch!\")","v":"Mindestens ein Betrag ist falsch!"}]
[null,null,"           - Fertige Erzeugnisse",null,34000,{"$f":"IF(AND(F95=\"Die Konten sind richtig!\",F96=\"Die Beträge sind richtig!\"),\"Alles richtig!\",\"Es sind noch Fehler vorhanden!\")","v":"Es sind noch Fehler vorhanden!"}]
[null,"Soll","Konto","€","Haben","Konto","€"]
["Buchungssatz",null,{"$f":"IF(B99=\"\",\"\",VLOOKUP(B99,Kontenplan!$A$4:$B$30,2))","v":""},null,null,{"$f":"IF(E99=\"\",\"\",VLOOKUP(E99,Kontenplan!$A$4:$B$30,2))","v":""}]
[null,null,{"$f":"IF(B100=\"\",\"\",VLOOKUP(B100,Kontenplan!$A$4:$B$30,2))","v":""},null,null,{"$f":"IF(E100=\"\",\"\",VLOOKUP(E100,Kontenplan!$A$4:$B$30,2))","v":""}]
[]
[{"$f":"IF(AND(F8=\"Alles richtig!\",F15=\"Alles richtig!\",F23=\"Alles richtig!\",F31=\"Alles richtig!\",F38=\"Alles richtig!\",F45=\"Alles richtig!\",F52=\"Alles richtig!\",F59=\"Alles richtig!\",F66=\"Alles richtig!\",F74=\"Alles richtig!\",F82=\"Alles richtig!\",F89=\"Alles richtig!\",F97=\"Alles richtig!\",F97=\"Alles richtig!\"),\"Die Buchungen im Grundbuch sind richtig!\",\"Das Grundbuch ist noch nicht vollständig!\")","v":"Das Grundbuch ist noch nicht vollständig!"}]

{"sheet":"Hauptbuch","index":2,"n_rows":146,"n_cols":12,"rows_kept":146,"cut":false,"hidden":false,"merged":[[138,11,138,12],[139,11,139,12],[144,11,144,12],[145,11,145,12],[124,11,124,12],[125,11,125,12],[132,11,132,12],[133,11,133,12],[94,11,94,12],[79,11,79,12],[112,11,112,12],[113,11,113,12],[119,11,119,12],[120,11,120,12],[97,11,97,12],[98,11,98,12],[103,11,103,12],[104,11,104,12],[3,11,3,12],[4,11,4,12],[7,11,7,12],[8,11,8,12],[34,11,34,12],[35,11,35,12],[39,11,39,12],[40,11,40,12],[23,11,23,12],[24,11,24,12],[29,11,29,12],[30,11,30,12],[97,1,97,3],[97,6,97,8],[96,1,96,8],[81,1,81,8],[90,1,90,8],[135,1,135,8],[11,11,11,12],[12,11,12,12],[17,11,17,12],[18,11,18,12],[55,11,55,12],[56,11,56,12],[61,11,61,12],[62,11,62,12],[43,11,43,12],[44,11,44,12],[49,11,49,12],[50,11,50,12],[84,11,84,12],[85,11,85,12],[93,11,93,12],[68,11,68,12],[69,11,69,12],[78,11,78,12],[142,1,142,3],[142,6,142,8],[123,6,123,8],[129,1,129,3],[129,6,129,8],[136,1,136,3],[136,6,136,8],[141,1,141,8],[100,1,100,8],[47,1,47,3],[47,6,47,8],[53,1,53,3],[53,6,53,8],[43,6,43,8],[28,6,28,8],[39,6,39,8],[43,1,43,3],[46,1,46,8],[32,1,32,8],[52,1,52,8],[38,1,38,8],[42,1,42,8],[33,1,33,3],[33,6,33,8],[39,1,39,3],[0,0,0,9],[2,1,2,8],[6,1,6,8],[10,1,10,8],[21,1,21,3],[21,6,21,8],[28,1,28,3],[27,1,27,8],[15,1,15,3],[15,6,15,8],[14,1,14,8],[3,1,3,3],[3,6,3,8],[7,1,7,3],[7,6,7,8],[20,1,20,8],[11,1,11,3],[11,6,11,8],[58,1,58,8],[108,1,108,8],[75,1,75,8],[116,1,116,8],[82,1,82,3],[82,6,82,8],[122,1,122,8],[128,1,128,8],[101,1,101,3],[101,6,101,8],[109,1,109,3],[109,6,109,8],[117,1,117,3],[117,6,117,8],[123,1,123,3],[59,1,59,3],[59,6,59,8],[76,1,76,3],[76,6,76,8],[65,1,65,8],[66,1,66,3],[66,6,66,8],[91,1,91,3],[91,6,91,8]]}
["Hauptbuch"]
[]
["Soll","0500 Grundstücke und Bauten",null,null,null,null,null,null,null,"Haben"]
["Nr.","Kontenanruf",null,null,"Euro","Nr.","Kontenanruf",null,null,"Euro",{"$f":"IF(L4=\"Kontenanrufe vollständig!\",1,2)","v":2},{"$f":"IF(G5=8010,\"Kontenanrufe vollständig!\",\"Kontenanrufe nicht vollständig!\")","v":"Kontenanrufe nicht vollständig!"}]
["AB","8000",null,null,{"$f":"Bilanzbuch!C4","v":220000},"SB",null,null,null,null,{"$f":"IF(L5=\"Saldo richtig!\",1,2)","v":2},{"$f":"IF(J5=220000,\"Saldo richtig!\",\"Ermitteln Sie den richtigen Saldo!\")","v":"Ermitteln Sie den richtigen Saldo!"}]
[]
["Soll","0700 Technische Anlagen und Maschinen",null,null,null,null,null,null,null,"Haben"]
["Nr.","Kontenanruf",null,null,"Euro","Nr.","Kontenanruf",null,null,"Euro",{"$f":"IF(L8=\"Kontenanrufe vollständig!\",1,2)","v":2},{"$f":"IF(G9=8010,\"Kontenanrufe vollständig!\",\"Kontenanrufe nicht vollständig!\")","v":"Kontenanrufe nicht vollständig!"}]
["AB","8000",null,null,{"$f":"Bilanzbuch!C5","v":443000},"SB",null,null,null,null,{"$f":"IF(L9=\"Saldo richtig!\",1,2)","v":2},{"$f":"IF(J9=443000,\"Saldo richtig!\",\"Ermitteln Sie den richtigen Saldo!\")","v":"Ermitteln Sie den richtigen Saldo!"}]
[]
["Soll","0800 Betriebs- und Geschäftsausstattung",null,null,null,null,null,null,null,"Haben"]
["Nr.","Kontenanruf",null,null,"Euro","Nr.","Kontenanruf",null,null,"Euro",{"$f":"IF(L12=\"Kontenanrufe vollständig!\",1,2)","v":2},{"$f":"IF(G13=8010,\"Kontenanrufe vollständig!\",\"Kontenanrufe nicht vollständig!\")","v":"Kontenanrufe nicht vollständig!"}]
["AB","8000",null,null,{"$f":"Bilanzbuch!C6","v":76800},"SB",null,null,null,null,{"$f":"IF(L13=\"Saldo richtig!\",1,2)","v":2},{"$f":"IF(J13=76800,\"Saldo richtig!\",\"Ermitteln Sie den richtigen Saldo!\")","v":"Ermitteln Sie den richtigen Saldo!"}]
[]
["Soll","0840 Fuhrpark",null,null,null,null,null,null,null,"Haben"]
["Nr.","Kontenanruf",null,null,"Euro","Nr.","Kontenanruf",null,null,"Euro"]
["AB","8000",null,null,{"$f":"Bilanzbuch!C7","v":88000},"SB"]
["1.",null,null,null,null,null,null,null,null,null,{"$f":"IF(L18=\"Kontenanrufe vollständig!\",1,2)","v":2},{"$f":"IF(AND(B18=4400,G17=8010),\"Kontenanrufe vollständig!\",\"Kontenanrufe nicht vollständig!\")","v":"Kontenanrufe nicht vollständig!"}]
[null,null,null,null,null,null,null,null,null,null,{"$f":"IF(L19=\"Saldo richtig!\",1,2)","v":2},{"$f":"IF(J17=116000,\"Saldo richtig!\",\"Ermitteln Sie den richtigen Saldo!\")","v":"Ermitteln Sie den richtigen Saldo!"}]
[]
["Soll","2000 Rohstoffe",null,null,null,null,null,null,null,"Haben"]
["Nr.","Kontenanruf",null,null,"Euro","Nr.","Kontenanruf",null,null,"Euro"]
["AB","8000",null,null,{"$f":"Bilanzbuch!C8","v":154000},"5."]
["4.",null,null,null,null,"A",null,null,null,null,{"$f":"IF(L24=\"Kontenanrufe vollständig!\",1,2)","v":2},{"$f":"IF(AND(B24=4400,B25=2001,G23=4400,G24=2002,G25=8010),\"Kontenanrufe vollständig!\",\"Kontenanrufe nicht vollständig!\")","v":"Kontenanrufe nicht vollständig!"}]
["A",null,null,null,null,"SB",null,null,null,null,{"$f":"IF(L25=\"Saldo richtig!\",1,2)","v":2},{"$f":"IF(J25=(E23+E24+E25-J23-J24),\"Saldo richtig!\",\"Ermitteln Sie den richtigen Saldo!\")","v":"Ermitteln Sie den richtigen Saldo!"}]
[]
[]
["Soll","2001 Bezugskosten (Rohstoffe)",null,null,null,null,null,null,null,"Haben"]
["Nr.","Kontenanruf",null,null,"Euro","Nr.","Kontenanruf",null,null,"Euro"]
["2.",null,null,null,null,"A",2000,null,null,{"$f":"E30","v":0},{"$f":"IF(L30=\"Kontenanrufe vollständig!\",1,2)","v":2},{"$f":"IF(AND(B30=2880,G30=2000),\"Kontenanrufe vollständig!\",\"Kontenanrufe nicht vollständig!\")","v":"Kontenanrufe nicht vollständig!"}]
[null,null,null,null,null,null,null,null,null,null,{"$f":"IF(L31=\"Saldo richtig!\",1,2)","v":2},{"$f":"IF(J30=350,\"Saldo richtig!\",\"Ermitteln Sie den richtigen Saldo!\")","v":"Ermitteln Sie den richtigen Saldo!"}]
[]
["Soll","2002 Nachlässe (Rohstoffe)",null,null,null,null,null,null,null,"Haben"]
["Nr.","Kontenanruf",null,null,"Euro","Nr.","Kontenanruf",null,null,"Euro"]
["A",2000,null,null,null,"8.",null,null,null,null,{"$f":"IF(L35=\"Kontenanrufe vollständig!\",1,2)","v":2},{"$f":"IF(AND(B35=2000,G35=4400,G36=4400),\"Kontenanrufe vollständig!\",\"Kontenanrufe nicht vollständig!\")","v":"Kontenanrufe nicht vollständig!"}]
[null,null,null,null,null,"10.",null,null,null,null,{"$f":"IF(L36=\"Saldo richtig!\",1,2)","v":2},{"$f":"IF(AND(E35>0,E35=(J35+J36)),\"Saldo richtig!\",\"Ermitteln Sie den richtigen Saldo!\")","v":"Ermitteln Sie den richtigen Saldo!"}]
[]
[]
["Soll","2020 Hilfsstoffe",null,null,null,null,null,null,null,"Haben"]
["Nr.","Kontenanruf",null,null,"Euro","Nr.","Kontenanruf",null,null,"Euro",{"$f":"IF(L40=\"Kontenanrufe vollständig!\",1,2)","v":2},{"$f":"IF(G41=8010,\"Kontenanrufe vollständig!\",\"Kontenanrufe nicht vollständig!\")","v":"Kontenanrufe nicht vollständig!"}]
["AB","8000",null,null,{"$f":"Bilanzbuch!C9","v":12800},"SB",null,null,null,null,{"$f":"IF(L41=\"Saldo richtig!\",1,2)","v":2},{"$f":"IF(J41=12800,\"Saldo richtig!\",\"Ermitteln Sie den richtigen Saldo!\")","v":"Ermitteln Sie den richtigen Saldo!"}]
[]
["Soll","2030 Betriebsstoffe",null,null,null,null,null,null,null,"Haben"]
["Nr.","Kontenanruf",null,null,"Euro","Nr.","Kontenanruf",null,null,"Euro",{"$f":"IF(L44=\"Kontenanrufe vollständig!\",1,2)","v":2},{"$f":"IF(G45=8010,\"Kontenanrufe vollständig!\",\"Kontenanrufe nicht vollständig!\")","v":"Kontenanrufe nicht vollständig!"}]
["AB","8000",null,null,{"$f":"Bilanzbuch!C10","v":7800},"SB",null,null,null,null,{"$f":"IF(L45=\"Saldo richtig!\",1,2)","v":2},{"$f":"IF(J45=7800,\"Saldo richtig!\",\"Ermitteln Sie den richtigen Saldo!\")","v":"Ermitteln Sie den richtigen Saldo!"}]
[]
["Soll","2100 Unfertige Erzeugnisse",null,null,null,null,null,null,null,"Haben"]
["Nr.","Kontenanruf",null,null,"Euro","Nr.","Kontenanruf",null,null,"Euro"]
["AB","8000",null,null,{"$f":"Bilanzbuch!C11","v":17800},"A1"]
[null,null,null,null,null,{"$f":"IF(E49>J49,\"A\",\"\")","v":"A"},null,null,null,null,{"$f":"IF(L50=\"Kontenanrufe vollständig!\",1,2)","v":2},{"$f":"IF(G50=5200,\"Kontenanrufe vollständig!\",\"Kontenanrufe nicht vollständig!\")","v":"Kontenanrufe nicht vollständig!"}]
[null,null,null,null,null,null,null,null,null,null,{"$f":"IF(L51=\"Saldo richtig!\",1,2)","v":2},{"$f":"IF(J50=5400,\"Saldo richtig!\",\"Ermitteln Sie den richtigen Saldo!\")","v":"Ermitteln Sie den richtigen Saldo!"}]
[]
["Soll","2200 Fertige Erzeugnisse",null,null,null,null,null,null,null,"Haben"]
["Nr.","Kontenanruf",null,null,"Euro","Nr.","Kontenanruf",null,null,"Euro"]
["AB","8000",null,null,{"$f":"Bilanzbuch!C12","v":32700},"A1"]
["A",null,null,null,null,null,null,null,null,null,{"$f":"IF(L56=\"Kontenanrufe vollständig!\",1,2)","v":2},{"$f":"IF(B56=5200,\"Kontenanrufe vollständig!\",\"Kontenanrufe nicht vollständig!\")","v":"Kontenanrufe nicht vollständig!"}]
[null,null,null,null,null,null,null,null,null,null,{"$f":"IF(L57=\"Saldo richtig!\",1,2)","v":2},{"$f":"IF(E56=1300,\"Saldo richtig!\",\"Ermitteln Sie den richtigen Saldo!\")","v":"Ermitteln Sie den richtigen Saldo!"}]
[]
["Soll","2400 Forderungen aus Lieferungen und Leistungen",null,null,null,null,null,null,null,"Haben"]
["Nr.","Kontenanruf",null,null,"Euro","Nr.","Kontenanruf",null,null,"Euro"]
["AB","8000",null,null,{"$f":"Bilanzbuch!C13","v":54800},"3."]
["11.",null,null,null,null,"6.",null,null,null,null,{"$f":"IF(L62=\"Kontenanrufe vollständig!\",1,2)","v":2},{"$f":"IF(AND(B62=5000,C62=4800,G61=2800,H61=5001,I61=4800,G62=5001,H62=4800,G63=8010),\"Kontenanrufe vollständig!\",\"Kontenanrufe nicht vollständig!\")","v":"Kontenanrufe nicht vollständig!"}]
[null,null,null,null,null,"SB",null,null,null,null,{"$f":"IF(L63=\"Saldo richtig!\",1,2)","v":2},{"$f":"IF(J63=(E61+E62-J61-J62),\"Saldo richtig!\",\"Ermitteln Sie den richtigen Saldo!\")","v":"Ermitteln Sie den richtigen Saldo!"}]
[]
[]
["Soll","2600 Vorsteuer",null,null,null,null,null,null,null,"Haben"]
["Nr.","Kontenanruf",null,null,"Euro","Nr.","Kontenanruf",null,null,"Euro"]
["1.",null,null,null,null,"5."]
["2.",null,null,null,null,"8.",null,null,null,null,{"$f":"IF(L69=\"Kontenanrufe vollständig!\",1,2)","v":2},{"$f":"IF(AND(B68=4400,B69=2880,B70=4400,B71=2880,B72=2880,B73=2880,G68=4400,G69=4400,G70=4400,G71=4800),\"Kontenanrufe vollständig!\",\"Kontenanrufe nicht vollständig!\")","v":"Kontenanrufe nicht vollständig!"}]
["4.",null,null,null,null,"10.",null,null,null,null,{"$f":"IF(L70=\"Saldo richtig!\",1,2)","v":2},{"$f":"IF(AND(J71>0,J71=E68+E69+E70+E71+E72+E73-J68-J69-J70),\"Saldo richtig!\",\"Ermitteln Sie den richtigen Saldo!\")","v":"Ermitteln Sie den richtigen Saldo!"}]
["7.",null,null,null,null,"A"]
["9."]
["12."]
[]
[]
["Soll","2800 Kreditinstitute/Bank",null,null,null,null,null,null,null,"Haben"]
["Nr.","Kontenanruf",null,null,"Euro","Nr.","Kontenanruf",null,null,"Euro"]
["AB","8000",null,null,{"$f":"Bilanzbuch!C14","v":87900},"10."]
["3.",null,null,null,null,"SB",null,null,null,null,{"$f":"IF(L79=\"Kontenanrufe vollständig!\",1,2)","v":2},{"$f":"IF(AND(B79=2400,G78=4400,G79=8010),\"Kontenanrufe vollständig!\",\"Kontenanrufe nicht vollständig!\")","v":"Kontenanrufe nicht vollständig!"}]
[null,null,null,null,null,null,null,null,null,null,{"$f":"IF(L80=\"Saldo richtig!\",1,2)","v":2},{"$f":"IF(J79=(E78+E79-J78),\"Saldo richtig!\",\"Ermitteln Sie den richtigen Saldo!\")","v":"Ermitteln Sie den richtigen Saldo!"}]
[]
["Soll","2880 Kasse",null,null,null,null,null,null,null,"Haben","X"]
["Nr.","Kontenanruf",null,null,"Euro","Nr.","Kontenanruf",null,null,"Euro"]
["AB","8000",null,null,{"$f":"Bilanzbuch!C15","v":11200},"2."]
[null,null,null,null,null,"7.",null,null,null,null,{"$f":"IF(L85=\"Kontenanrufe vollständig!\",1,2)","v":2},{"$f":"IF(AND(G84=2001,H84=2600,G85=6160,H85=2600,G86=6140,H86=2600,G87=6140,H87=2600,G88=8010),\"Kontenanrufe vollständig!\",\"Kontenanrufe nicht vollständig!\")","v":"Kontenanrufe nicht vollständig!"}]
[null,null,null,null,null,"9.",null,null,null,null,{"$f":"IF(L86=\"Saldo richtig!\",1,2)","v":2},{"$f":"IF(J88=(E84-J84-J85-J86-J87),\"Saldo richtig!\",\"Ermitteln Sie den richtigen Saldo!\")","v":"Ermitteln Sie den richtigen Saldo!"}]
[null,null,null,null,null,"12."]
[null,null,null,null,null,"SB"]
[]
[]
["Soll","3000 Eigenkapital",null,null,null,null,null,null,null,"Haben"]
["Nr.","Kontenanruf",null,null,"Euro","Nr.","Kontenanruf",null,null,"Euro"]
["SB",null,null,null,null,"AB",8000,null,null,{"$f":"Bilanzbuch!F4","v":714080}]
[null,null,null,null,null,"A",null,null,null,null,{"$f":"IF(L94=\"Kontenanrufe vollständig!\",1,2)","v":2},{"$f":"IF(AND(G94=8020,B93=8010),\"Kontenanrufe vollständig!\",\"Kontenanrufe nicht vollständig!\")","v":"Kontenanrufe nicht vollständig!"}]
[null,null,null,null,null,null,null,null,null,null,{"$f":"IF(L95=\"Saldo richtig!\",1,2)","v":2},{"$f":"IF(E93=(J93+J94),\"Saldo richtig!\",\"Ermitteln Sie den richtigen Saldo!\")","v":"Ermitteln Sie den richtigen Saldo!"}]
[]
["Soll","4200 Verbindlichkeiten gegenüber Kreditinstituten (Darlehen)",null,null,null,null,null,null,null,"Haben"]
["Nr.","Kontenanruf",null,null,"Euro","Nr.","Kontenanruf",null,null,"Euro",{"$f":"IF(L98=\"Kontenanrufe vollständig!\",1,2)","v":2},{"$f":"IF(B99=8010,\"Kontenanrufe vollständig!\",\"Kontenanrufe nicht vollständig!\")","v":"Kontenanrufe nicht vollständig!"}]
["SB",null,null,null,null,"AB","8000",null,null,{"$f":"Bilanzbuch!F5","v":450000},{"$f":"IF(L99=\"Saldo richtig!\",1,2)","v":2},{"$f":"IF(E99=450000,\"Saldo richtig!\",\"Ermitteln Sie den richtigen Saldo!\")","v":"Ermitteln Sie den richtigen Saldo!"}]
[]
["Soll","4400 Verbindlichkeiten aus Lieferungen und Leistungen",null,null,null,null,null,null,null,"Haben","X"]
["Nr.","Kontenanruf",null,null,"Euro","Nr.","Kontenanruf",null,null,"Euro"]
["5.",null,null,null,null,"AB",8000,null,null,{"$f":"Bilanzbuch!F6","v":34600}]
["8.",null,null,null,null,"1.",null,null,null,null,{"$f":"IF(L104=\"Kontenanrufe vollständig!\",1,2)","v":2},{"$f":"IF(AND(B103=2000,C103=2600,B104=2002,C104=2600,B105=2800,C105=2002,D105=2600,B106=8010,G104=\"0840\",H104=2600,G105=2000,H105=2600),\"Kontenanrufe vollständig!\",\"Kontenanrufe nicht vollständig!\")","v":"Kontenanrufe nicht vollständig!"}]
["10.",null,null,null,null,"4.",null,null,null,null,{"$f":"IF(L105=\"Saldo richtig!\",1,2)","v":2},{"$f":"IF(E106=(J103+J104+J105-E103-E104-E105),\"Saldo richtig!\",\"Ermitteln Sie den richtigen Saldo!\")","v":"Ermitteln Sie den richtigen Saldo!"}]
["SB"]
[]
[]
["Soll","4800 Umsatzsteuer",null,null,null,null,null,null,null,"Haben"]
["Nr.","Kontenanruf",null,null,"Euro","Nr.","Kontenanruf",null,null,"Euro"]
["3.",null,null,null,null,"AB","8000",null,null,{"$f":"Bilanzbuch!F7","v":8120}]
["6.",null,null,null,null,"11."]
["A.",null,null,null,null,null,null,null,null,null,{"$f":"IF(L113=\"Kontenanrufe vollständig!\",1,2)","v":2},{"$f":"IF(AND(B111=2400,B112=2400,B113=2600,B114=8010,G112=2400),\"Kontenanrufe vollständig!\",\"Kontenanrufe nicht vollständig!\")","v":"Kontenanrufe nicht vollständig!"}]
["SB",null,null,null,null,null,null,null,null,null,{"$f":"IF(L114=\"Saldo richtig!\",1,2)","v":2},{"$f":"IF(E114=(J111+J112-E111-E112-E113),\"Saldo richtig!\",\"Ermitteln Sie den richtigen Saldo!\")","v":"Ermitteln Sie den richtigen Saldo!"}]
[]
[]
["Soll","5000 Umsatzerlöse",null,null,null,null,null,null,null,"Haben"]
["Nr.","Kontenanruf",null,null,"Euro","Nr.","Kontenanruf",null,null,"Euro"]
["A",null,null,null,null,"11."]
["A",null,null,null,null,null,null,null,null,null,{"$f":"IF(L120=\"Kontenanrufe vollständig!\",1,2)","v":2},{"$f":"IF(AND(B119=5001,B120=8020,G119=2400),\"Kontenanrufe vollständig!\",\"Kontenanrufe nicht vollständig!\")","v":"Kontenanrufe nicht vollständig!"}]
[null,null,null,null,null,null,null,null,null,null,{"$f":"IF(L121=\"Saldo richtig!\",1,2)","v":2},{"$f":"IF(AND(E120>0,E120=(J119-E119)),\"Saldo richtig!\",\"Ermitteln Sie den richtigen Saldo!\")","v":"Ermitteln Sie den richtigen Saldo!"}]
[]
["Soll","5001 Erlösberichtigungen",null,null,null,null,null,null,null,"Haben"]
["Nr.","Kontenanruf",null,null,"Euro","Nr.","Kontenanruf",null,null,"Euro"]
["3.",null,null,null,null,"A",null,null,null,null,{"$f":"IF(L125=\"Kontenanrufe vollständig!\",1,2)","v":2},{"$f":"IF(AND(B125=2400,B126=2400,G125=5000),\"Kontenanrufe vollständig!\",\"Kontenanrufe nicht vollständig!\")","v":"Kontenanrufe nicht vollständig!"}]
["6.",null,null,null,null,null,null,null,null,null,{"$f":"IF(L126=\"Saldo richtig!\",1,2)","v":2},{"$f":"IF(AND(J125>0,J125=(E125+E126)),\"Saldo richtig!\",\"Ermitteln Sie den richtigen Saldo!\")","v":"Ermitteln Sie den richtigen Saldo!"}]
[]
[]
["Soll","5200 Bestandsveränderunen",null,null,null,null,null,null,null,"Haben"]
["Nr.","Kontenanruf",null,null,"Euro","Nr.","Kontenanruf",null,null,"Euro"]
[{"$f":"IF(J49<E49,\"A\",\"\")","v":"A"},null,null,null,null,"A"]
[null,null,null,null,null,"A"]
[null,null,null,null,null,null,null,null,null,null,{"$f":"IF(L133=\"Kontenanrufe vollständig!\",1,2)","v":2},{"$f":"IF(AND(B131=2100,G131=2200,G132=8020),\"Kontenanrufe vollständig!\",\"Kontenanrufe nicht vollständig!\")","v":"Kontenanrufe nicht vollständig!"}]
[null,null,null,null,null,null,null,null,null,null,{"$f":"IF(L134=\"Saldo richtig!\",1,2)","v":2},{"$f":"IF(J132=4100,\"Saldo richtig!\",\"Ermitteln Sie den richtigen Saldo!\")","v":"Ermitteln Sie den richtigen Saldo!"}]
[]
["Soll","6140 Frachten und Femdlager",null,null,null,null,null,null,null,"Haben"]
["Nr.","Kontenanruf",null,null,"Euro","Nr.","Kontenanruf",null,null,"Euro"]
["9.",null,null,null,null,"A"]
["12.",null,null,null,null,null,null,null,null,null,{"$f":"IF(L139=\"Kontenanrufe vollständig!\",1,2)","v":2},{"$f":"IF(AND(B138=2880,B139=2880,G138=8020),\"Kontenanrufe vollständig!\",\"Kontenanrufe nicht vollständig!\")","v":"Kontenanrufe nicht vollständig!"}]
[null,null,null,null,null,null,null,null,null,null,{"$f":"IF(L140=\"Saldo richtig!\",1,2)","v":2},{"$f":"IF(J138=1350,\"Saldo richtig!\",\"Ermitteln Sie den richtigen Saldo!\")","v":"Ermitteln Sie den richtigen Saldo!"}]
[]
["Soll","6160 Fremdinstandhaltung",null,null,null,null,null,null,null,"Haben"]
["Nr.","Kontenanruf",null,null,"Euro","Nr.","Kontenanruf",null,null,"Euro"]
["7",null,null,null,null,"A"]
[null,null,null,null,null,null,null,null,null,null,{"$f":"IF(L145=\"Kontenanrufe vollständig!\",1,2)","v":2},{"$f":"IF(AND(B144=2880,G144=8020),\"Kontenanrufe vollständig!\",\"Kontenanrufe nicht vollständig!\")","v":"Kontenanrufe nicht vollständig!"}]
[null,null,null,null,null,null,null,null,null,null,{"$f":"IF(L146=\"Saldo richtig!\",1,2)","v":2},{"$f":"IF(J144=2800,\"Saldo richtig!\",\"Ermitteln Sie den richtigen Saldo!\")","v":"Ermitteln Sie den richtigen Saldo!"}]

{"sheet":"GuV","index":3,"n_rows":129,"n_cols":11,"rows_kept":129,"cut":false,"hidden":false,"merged":[[0,0,0,5],[2,1,2,4],[3,6,4,6],[3,7,4,7]]}
["Gewinn- und Verlustrechnung"]
[]
["Soll","8020 Gewinn und Verlust",null,null,null,"Haben","X"]
["5200",{"$f":"VLOOKUP(A4,Kontenplan!$A$4:$B$30,2)","v":"Bestandsveränderungen"},null,"5000",{"$f":"VLOOKUP(D4,Kontenplan!$A$4:$B$30,2)","v":"Umsatzerlöse"},null,{"$f":"IF(H4=\"rechnerisch richtig\",1,2)","v":2},{"$f":"IF(AND(C7>0,C7=(F4-C4-C5-C6)),\"rechnerisch richtig\",\"Sie haben noch Fehler!\")","v":"Sie haben noch Fehler!"}]
["6140","Frachten und Fremdlager"]
["6160","Fremdinstandhaltung"]
[3000,"Eigenkapital"]
[]
[]
[]
[]
[]
[]
[]
[]
[]
[]
[]
[]
[]
[]
[]
[]
[]
[]
[]
[]
[]
[]
[]
[]
[]
[]
[]
[]
[]
[]
[]
[]
[]
[]
[]
[]
[]
[]
[]
[]
[]
[]
[]
[]
[]
[]
[]
[]
[]
[]
[]
[]
[]
[]
[]
[]
[]
[]
[]
[]
[]
[]
[]
[]
[]
[]
[]
[]
[]
[]
[]
[]
[]
[]
[]
[]
[]
[]
[]
[]
[]
[]
[]
[]
[]
[]
[]
[]
[]
[]
[]
[]
[]
[]
[]
[]
[]
[]
[]
[]
[]
[]
[]
[]
[]
[]
[]
[]
[]
[]
[]
[]
[]
[]
[]
[]
[]
[]
[]
[]
[]
[null,null,null,null,null,null,null,null,null,null,"X"]

{"sheet":"Bilanzbuch","index":4,"n_rows":31,"n_cols":8,"rows_kept":31,"cut":false,"hidden":false,"merged":[[2,1,2,4],[0,0,0,5],[17,1,17,4],[18,6,19,6]]}
["Bilanzbuch"]
[]
["Aktiva","8000 Eröffnungsbilanz",null,null,null,"Passiva"]
["0500",{"$f":"VLOOKUP(A4,Kontenplan!$A$4:$B$30,2)","v":"Grundstücke und Bauten"},220000,"3000",{"$f":"VLOOKUP(D4,Kontenplan!$A$4:$B$30,2)","v":"Eigenkapital"},{"$f":"F16-SUM(F5:F15)","v":714080}]
["0700",{"$f":"VLOOKUP(A5,Kontenplan!$A$4:$B$30,2)","v":"Technische Anlagen und Maschinen"},443000,"4200","Verbindlichkeiten g. Kreditinstitute",450000]
["0800",{"$f":"VLOOKUP(A6,Kontenplan!$A$4:$B$30,2)","v":"Beriebs- und Geschäftsausstattung"},76800,"4400",{"$f":"VLOOKUP(D6,Kontenplan!$A$4:$B$30,2)","v":"Verbindlichkeiten a.L.u.L."},34600]
["0840","Fuhrpark",88000,"4800",{"$f":"VLOOKUP(D7,Kontenplan!$A$4:$B$30,2)","v":"Umsatzsteuer"},8120]
["2000",{"$f":"VLOOKUP(A8,Kontenplan!$A$4:$B$30,2)","v":"Rohstoffe"},154000]
["2020",{"$f":"VLOOKUP(A9,Kontenplan!$A$4:$B$30,2)","v":"Hilfsstoffe"},12800]
["2030",{"$f":"VLOOKUP(A10,Kontenplan!$A$4:$B$30,2)","v":"Betriebsstoffe"},7800]
["2100",{"$f":"VLOOKUP(A11,Kontenplan!$A$4:$B$30,2)","v":"Unfertige Erzeugnisse"},17800]
["2200",{"$f":"VLOOKUP(A12,Kontenplan!$A$4:$B$30,2)","v":"Fertige Erzeugnisse"},32700]
["2400",{"$f":"VLOOKUP(A13,Kontenplan!$A$4:$B$30,2)","v":"Forderungen a.L.u.L."},54800]
["2800",{"$f":"VLOOKUP(A14,Kontenplan!$A$4:$B$30,2)","v":"Kreditinstitute/Bank"},87900]
["2880",{"$f":"VLOOKUP(A15,Kontenplan!$A$4:$B$30,2)","v":"Kasse"},11200]
[null,null,{"$f":"SUM(C4:C15)","v":1206800},null,null,{"$f":"C16","v":1206800}]
[]
["Aktiva","8010 Schlussbilanz",null,null,null,"Passiva"]
["0500",{"$f":"VLOOKUP(A19,Kontenplan!$A$4:$B$30,2)","v":"Grundstücke und Bauten"},null,"3000",{"$f":"VLOOKUP(D19,Kontenplan!$A$4:$B$30,2)","v":"Eigenkapital"},null,{"$f":"IF(H19=\"Aktiva = Passiva\",1,2)","v":1},{"$f":"IF(C31-F31=0,\"Aktiva = Passiva\",IF(C31-F31>0,\"Aktiva > Passiva\",\"Aktiva < Passiva\"))","v":"Aktiva = Passiva"}]
["0700",{"$f":"VLOOKUP(A20,Kontenplan!$A$4:$B$30,2)","v":"Technische Anlagen und Maschinen"},null,"4200","Verbindlichkeiten g. Kreditinstituten",null,null,{"$f":"CONCATENATE(\"Differenz = \",$C$31-$F$31)","v":"Differenz = 0"}]
["0800",{"$f":"VLOOKUP(A21,Kontenplan!$A$4:$B$30,2)","v":"Beriebs- und Geschäftsausstattung"},null,"4400",{"$f":"VLOOKUP(D21,Kontenplan!$A$4:$B$30,2)","v":"Verbindlichkeiten a.L.u.L."}]
["0840","Fuhrpark",null,"4800",{"$f":"VLOOKUP(D22,Kontenplan!$A$4:$B$30,2)","v":"Umsatzsteuer"}]
["2000",{"$f":"VLOOKUP(A23,Kontenplan!$A$4:$B$30,2)","v":"Rohstoffe"}]
["2020",{"$f":"VLOOKUP(A24,Kontenplan!$A$4:$B$30,2)","v":"Hilfsstoffe"}]
["2030",{"$f":"VLOOKUP(A25,Kontenplan!$A$4:$B$30,2)","v":"Betriebsstoffe"}]
["2100",{"$f":"VLOOKUP(A26,Kontenplan!$A$4:$B$30,2)","v":"Unfertige Erzeugnisse"}]
["2200",{"$f":"VLOOKUP(A27,Kontenplan!$A$4:$B$30,2)","v":"Fertige Erzeugnisse"}]
["2400",{"$f":"VLOOKUP(A28,Kontenplan!$A$4:$B$30,2)","v":"Forderungen a.L.u.L."}]
["2800",{"$f":"VLOOKUP(A29,Kontenplan!$A$4:$B$30,2)","v":"Kreditinstitute/Bank"}]
["2880",{"$f":"VLOOKUP(A30,Kontenplan!$A$4:$B$30,2)","v":"Kasse"}]
[null,null,{"$f":"SUM(C19:C30)","v":0},null,null,{"$f":"SUM(F19:F22)","v":0}]

{"sheet":"Kontenplan","index":5,"n_rows":30,"n_cols":2,"rows_kept":30,"cut":false,"hidden":false,"merged":[]}
[null,"Kontenplan"]
[]
["Nr.","Konto"]
["0500","Grundstücke und Bauten"]
["0700","Technische Anlagen und Maschinen"]
["0800","Beriebs- und Geschäftsausstattung"]
["0840","Fuhrpark"]
["2000","Rohstoffe"]
["2001","Bezugskosten (Rohstoffe)"]
["2002","Nachlässe (Rohstoffe)"]
["2020","Hilfsstoffe"]
["2030","Betriebsstoffe"]
["2100","Unfertige Erzeugnisse"]
["2200","Fertige Erzeugnisse"]
["2400","Forderungen a.L.u.L."]
["2600","Vorsteuer"]
["2800","Kreditinstitute/Bank"]
["2880","Kasse"]
["3000","Eigenkapital"]
["4200","Verbindlichkeiten g. Kreditinstituten"]
["4400","Verbindlichkeiten a.L.u.L."]
["4800","Umsatzsteuer"]
["5000","Umsatzerlöse"]
["5001","Erlösberichtigungen"]
["5200","Bestandsveränderungen"]
["6140","Frachten und Fremdlager"]
["6160","Fremdinstandhaltung"]
["8000","Eröffnungsbilanz"]
["8010","Schlussbilanz"]
["8020","Gewinn und Verlust"]